[Event "*** Titled Tuesday Blitz"]
[Site "Chess.com"]
[Date "2020.04.14"]
[Round "8"]
[White "rozabaku"]
[Black "Trickov"]
[Result "0-1"]
[WhiteElo "2426"]
[BlackElo "2286"]
[TimeControl "180+1"]
[EndTime "11:31:15 PDT"]
[Termination "Trickov won by checkmate"]

1. d4 {[%clk 0:03:00]} 1... d5 {[%clk 0:02:45.3]} 2. c4 {[%clk 0:03:00.1]} 2...
c6 {[%clk 0:02:45]} 3. Nc3 {[%clk 0:03:00.4]} 3... Nf6 {[%clk 0:02:44.4]} 4. Bg5
{[%clk 0:03:00.5]} 4... Ne4 {[%clk 0:02:43.1]} 5. Nxe4 {[%clk 0:03:00.5]} 5...
dxe4 {[%clk 0:02:43]} 6. Qd2 {[%clk 0:03:01.4]} 6... h6 {[%clk 0:02:41.2]} 7.
Bh4 {[%clk 0:03:01.5]} 7... g5 {[%clk 0:02:39.8]} 8. Bg3 {[%clk 0:03:01.6]} 8...
Bg7 {[%clk 0:02:39.4]} 9. e3 {[%clk 0:03:01.2]} 9... f5 {[%clk 0:02:38.8]} 10.
h4 {[%clk 0:03:00.5]} 10... Nd7 {[%clk 0:02:35.5]} 11. Be2 {[%clk 0:03:00.2]}
11... Nf6 {[%clk 0:02:34.3]} 12. Nh3 {[%clk 0:02:55.5]} 12... g4 {[%clk
0:02:24.9]} 13. Nf4 {[%clk 0:02:53.7]} 13... O-O {[%clk 0:02:21.6]} 14. h5
{[%clk 0:02:51.6]} 14... Re8 {[%clk 0:02:05.8]} 15. O-O {[%clk 0:02:45.1]} 15...
e5 {[%clk 0:02:00.3]} 16. Ng6 {[%clk 0:02:41.2]} 16... exd4 {[%clk 0:01:57.4]}
17. exd4 {[%clk 0:02:35.4]} 17... Nxh5 {[%clk 0:01:56.4]} 18. Be5 {[%clk
0:02:32.1]} 18... Bxe5 {[%clk 0:01:54.7]} 19. Nxe5 {[%clk 0:02:32]} 19... Kg7
{[%clk 0:01:44.9]} 20. Qc3 {[%clk 0:02:26.3]} 20... Nf4 {[%clk 0:01:32]} 21.
Rfe1 {[%clk 0:02:19.8]} 21... Ng6 {[%clk 0:01:27.7]} 22. Nxg6 {[%clk 0:01:43.9]}
22... Kxg6 {[%clk 0:01:26.6]} 23. Rad1 {[%clk 0:01:41.2]} 23... Qf6 {[%clk
0:01:26.1]} 24. Qg3 {[%clk 0:01:33.3]} 24... Be6 {[%clk 0:01:23.3]} 25. d5
{[%clk 0:01:33.2]} 25... cxd5 {[%clk 0:01:21.2]} 26. cxd5 {[%clk 0:01:34.1]}
26... Bf7 {[%clk 0:01:20.8]} 27. f3 {[%clk 0:01:18.6]} 27... exf3 {[%clk
0:01:18.9]} 28. gxf3 {[%clk 0:01:18.7]} 28... h5 {[%clk 0:01:16.6]} 29. fxg4
{[%clk 0:01:12.3]} 29... hxg4 {[%clk 0:01:15.6]} 30. Bd3 {[%clk 0:01:09.3]}
30... Rxe1+ {[%clk 0:01:09.4]} 31. Rxe1 {[%clk 0:01:10.2]} 31... Qd4+ {[%clk
0:01:06.6]} 32. Kf1 {[%clk 0:01:01.1]} 32... Kg5 {[%clk 0:01:04.1]} 33. Re5
{[%clk 0:00:51.5]} 33... Bg6 {[%clk 0:00:58.5]} 34. Be2 {[%clk 0:00:34.4]} 34...
Qf4+ {[%clk 0:00:51.3]} 35. Qxf4+ {[%clk 0:00:33.8]} 35... Kxf4 {[%clk
0:00:51.4]} 36. Re7 {[%clk 0:00:33.9]} 36... Rd8 {[%clk 0:00:44.2]} 37. Bc4
{[%clk 0:00:33.8]} 37... Rc8 {[%clk 0:00:43.3]} 38. b3 {[%clk 0:00:24.4]} 38...
b5 {[%clk 0:00:43]} 39. Bxb5 {[%clk 0:00:23.9]} 39... Rc1+ {[%clk 0:00:43.4]}
40. Re1 {[%clk 0:00:24.3]} 40... Rxe1+ {[%clk 0:00:33.8]} 41. Kxe1 {[%clk
0:00:25.2]} 41... Ke5 {[%clk 0:00:33.8]} 42. Bc4 {[%clk 0:00:25.3]} 42... f4
{[%clk 0:00:33.8]} 43. Kf2 {[%clk 0:00:17.3]} 43... Be4 {[%clk 0:00:33.7]} 44.
Be2 {[%clk 0:00:15.6]} 44... g3+ {[%clk 0:00:33.3]} 45. Kf1 {[%clk 0:00:13]}
45... Bxd5 {[%clk 0:00:31.5]} 46. Bd1 {[%clk 0:00:11.4]} 46... a5 {[%clk
0:00:29.5]} 47. a3 {[%clk 0:00:10.5]} 47... Kd4 {[%clk 0:00:28.9]} 48. b4 {[%clk
0:00:10.3]} 48... axb4 {[%clk 0:00:28.9]} 49. axb4 {[%clk 0:00:11.2]} 49... Ke3
{[%clk 0:00:28.6]} 50. b5 {[%clk 0:00:08.8]} 50... f3 {[%clk 0:00:25]} 51. Bxf3
{[%clk 0:00:06.1]} 51... Kxf3 {[%clk 0:00:24]} 52. b6 {[%clk 0:00:05.7]} 52...
Bb7 {[%clk 0:00:20.8]} 53. Kg1 {[%clk 0:00:06.6]} 53... Bc8 {[%clk 0:00:19.5]}
54. Kf1 {[%clk 0:00:06.7]} 54... Ba6+ {[%clk 0:00:19.3]} 55. Kg1 {[%clk
0:00:07.6]} 55... Bb7 {[%clk 0:00:18.8]} 56. Kf1 {[%clk 0:00:08]} 56... Ke3
{[%clk 0:00:18.5]} 57. Kg1 {[%clk 0:00:08.9]} 57... Kf3 {[%clk 0:00:18.3]} 58.
Kf1 {[%clk 0:00:09.3]} 58... Kg4 {[%clk 0:00:18.5]} 59. Kg1 {[%clk 0:00:09.5]}
59... Kh3 {[%clk 0:00:18.7]} 60. Kf1 {[%clk 0:00:09]} 60... Kh2 {[%clk
0:00:18.9]} 61. Ke2 {[%clk 0:00:09.3]} 61... g2 {[%clk 0:00:19.2]} 62. Ke3
{[%clk 0:00:10.2]} 62... g1=Q+ {[%clk 0:00:18.7]} 63. Kf4 {[%clk 0:00:11.1]}
63... Qxb6 {[%clk 0:00:18.4]} 64. Ke5 {[%clk 0:00:12]} 64... Qc5+ {[%clk
0:00:18.3]} 65. Kf6 {[%clk 0:00:11.8]} 65... Ba6 {[%clk 0:00:18.1]} 66. Ke6
{[%clk 0:00:12.7]} 66... Bc4+ {[%clk 0:00:17.5]} 67. Kd7 {[%clk 0:00:13.5]}
67... Qd5+ {[%clk 0:00:17.4]} 68. Kc7 {[%clk 0:00:13.6]} 68... Qe6 {[%clk
0:00:17.1]} 69. Kb7 {[%clk 0:00:13.8]} 69... Bd5+ {[%clk 0:00:17.2]} 70. Kc7
{[%clk 0:00:14.7]} 70... Qc6+ {[%clk 0:00:17]} 71. Kd8 {[%clk 0:00:15.1]} 71...
Qb7 {[%clk 0:00:16.9]} 72. Ke8 {[%clk 0:00:15.3]} 72... Qc7 {[%clk 0:00:16.8]}
73. Kf8 {[%clk 0:00:15.3]} 73... Qf7# {[%clk 0:00:17.2]} 0-1

[Event "*** Titled Tuesday Blitz"]
[Site "Chess.com"]
[Date "2020.04.14"]
[Round "8"]
[White "Andrii_Prydun"]
[Black "Haykoooo0o"]
[Result "0-1"]
[WhiteElo "2345"]
[BlackElo "2587"]
[TimeControl "180+1"]
[EndTime "11:31:18 PDT"]
[Termination "Haykoooo0o won by resignation"]

1. d4 {[%clk 0:02:53.9]} 1... Nf6 {[%clk 0:02:59.5]} 2. Nf3 {[%clk 0:02:53.9]}
2... d5 {[%clk 0:02:57.5]} 3. c4 {[%clk 0:02:53.9]} 3... e6 {[%clk 0:02:57.3]}
4. g3 {[%clk 0:02:54]} 4... Be7 {[%clk 0:02:57.4]} 5. Bg2 {[%clk 0:02:54.4]}
5... O-O {[%clk 0:02:58.3]} 6. O-O {[%clk 0:02:54.1]} 6... dxc4 {[%clk
0:02:59.2]} 7. Qc2 {[%clk 0:02:54]} 7... b6 {[%clk 0:02:59.2]} 8. Nbd2 {[%clk
0:02:50.5]} 8... Bb7 {[%clk 0:02:53.9]} 9. Nxc4 {[%clk 0:02:50.5]} 9... Nbd7
{[%clk 0:02:51.9]} 10. Bf4 {[%clk 0:02:43]} 10... c5 {[%clk 0:02:51]} 11. Rad1
{[%clk 0:02:35.2]} 11... cxd4 {[%clk 0:02:50]} 12. Nxd4 {[%clk 0:02:36.1]} 12...
Bxg2 {[%clk 0:02:49.2]} 13. Kxg2 {[%clk 0:02:37]} 13... Qc8 {[%clk 0:02:48]} 14.
Rc1 {[%clk 0:02:17.6]} 14... Qb7+ {[%clk 0:02:45.8]} 15. Kg1 {[%clk 0:02:14.9]}
15... Rac8 {[%clk 0:02:46.7]} 16. Qd3 {[%clk 0:02:08.7]} 16... Nc5 {[%clk
0:02:44.5]} 17. Qf3 {[%clk 0:02:08.7]} 17... Qxf3 {[%clk 0:02:40.9]} 18. Nxf3
{[%clk 0:02:09.6]} 18... Rfd8 {[%clk 0:02:38.3]} 19. Rfd1 {[%clk 0:02:09.1]}
19... Nd5 {[%clk 0:02:32.2]} 20. Be5 {[%clk 0:02:04.7]} 20... f6 {[%clk
0:02:25.8]} 21. Bd4 {[%clk 0:02:01.2]} 21... Kf7 {[%clk 0:02:26.3]} 22. Bxc5
{[%clk 0:01:34.2]} 22... Bxc5 {[%clk 0:02:21.8]} 23. Kf1 {[%clk 0:01:33.6]}
23... Ke7 {[%clk 0:02:18.4]} 24. e3 {[%clk 0:01:32.1]} 24... Nb4 {[%clk
0:02:06.1]} 25. Rxd8 {[%clk 0:01:31]} 25... Rxd8 {[%clk 0:02:04]} 26. a3 {[%clk
0:01:30.6]} 26... Nd3 {[%clk 0:01:55.9]} 27. Rd1 {[%clk 0:01:30.6]} 27... b5
{[%clk 0:01:34.6]} 28. Na5 {[%clk 0:01:30.2]} 28... Ke8 {[%clk 0:01:17.3]} 29.
Nb7 {[%clk 0:01:25.6]} 29... Rd7 {[%clk 0:01:12.2]} 30. Rxd3 {[%clk 0:01:10.3]}
30... Rxb7 {[%clk 0:01:11.4]} 31. Rc3 {[%clk 0:01:06]} 31... Bd6 {[%clk
0:01:06.8]} 32. Nd4 {[%clk 0:01:04.9]} 32... Kd7 {[%clk 0:01:05.7]} 33. Rb3
{[%clk 0:00:59.7]} 33... a6 {[%clk 0:01:04.7]} 34. a4 {[%clk 0:00:59.7]} 34...
b4 {[%clk 0:01:03.8]} 35. Rd3 {[%clk 0:01:00.1]} 35... Rc7 {[%clk 0:00:59.9]}
36. Ke2 {[%clk 0:00:55.1]} 36... Rc1 {[%clk 0:00:58.9]} 37. Rd1 {[%clk
0:00:54.3]} 37... Rxd1 {[%clk 0:00:56.1]} 38. Kxd1 {[%clk 0:00:55]} 38... Be5
{[%clk 0:00:56.6]} 39. Nc2 {[%clk 0:00:54.5]} 39... a5 {[%clk 0:00:47]} 40. b3
{[%clk 0:00:54.5]} 40... Kd6 {[%clk 0:00:45.5]} 41. Ke2 {[%clk 0:00:54.5]} 41...
Kd5 {[%clk 0:00:43.8]} 42. Kd3 {[%clk 0:00:54.8]} 42... Bc3 {[%clk 0:00:40.3]}
43. e4+ {[%clk 0:00:53.2]} 43... Kc5 {[%clk 0:00:35.7]} 44. f3 {[%clk
0:00:48.9]} 44... Be5 {[%clk 0:00:29.3]} 45. Ne3 {[%clk 0:00:47.9]} 45... Bc7
{[%clk 0:00:29.6]} 46. Nc4 {[%clk 0:00:46.8]} 46... g6 {[%clk 0:00:27.8]} 47.
Ne3 {[%clk 0:00:27.8]} 47... h5 {[%clk 0:00:27]} 48. Ng2 {[%clk 0:00:24.7]}
48... g5 {[%clk 0:00:25.5]} 49. Ne3 {[%clk 0:00:19]} 49... Be5 {[%clk
0:00:24.8]} 50. Nc4 {[%clk 0:00:17.7]} 50... Bc7 {[%clk 0:00:25.3]} 51. e5
{[%clk 0:00:17.8]} 51... f5 {[%clk 0:00:23.1]} 52. h3 {[%clk 0:00:14.8]} 52...
Kd5 {[%clk 0:00:18]} 53. f4 {[%clk 0:00:13.3]} 53... gxf4 {[%clk 0:00:14.4]} 54.
gxf4 {[%clk 0:00:14.2]} 54... Bd8 {[%clk 0:00:14.5]} 55. Ke3 {[%clk 0:00:12.2]}
55... Kc5 {[%clk 0:00:14]} 56. Kd3 {[%clk 0:00:12]} 56... Kd5 {[%clk 0:00:13.3]}
57. Ne3+ {[%clk 0:00:11.7]} 57... Kc5 {[%clk 0:00:12.8]} 58. Nc4 {[%clk
0:00:11.7]} 58... Bc7 {[%clk 0:00:12.9]} 59. Ke3 {[%clk 0:00:11.3]} 59... Kc6
{[%clk 0:00:13.2]} 60. Nd2 {[%clk 0:00:09.1]} 60... Bb6+ {[%clk 0:00:12.1]} 61.
Kd3 {[%clk 0:00:08.7]} 61... Ba7 {[%clk 0:00:12.4]} 62. Nf3 {[%clk 0:00:08.7]}
62... Bf2 {[%clk 0:00:11.2]} 63. Ng5 {[%clk 0:00:08.3]} 63... Kd5 {[%clk
0:00:11.4]} 64. Nh7 {[%clk 0:00:04.6]} 64... Bh4 {[%clk 0:00:10.5]} 65. Nf6+
{[%clk 0:00:05.5]} 65... Bxf6 {[%clk 0:00:10.2]} 66. exf6 {[%clk 0:00:06.4]}
66... Kd6 {[%clk 0:00:10.8]} 67. Kd4 {[%clk 0:00:07.2]} 67... Kd7 {[%clk
0:00:08.7]} 68. Ke5 {[%clk 0:00:07.5]} 68... h4 {[%clk 0:00:09.2]} 69. Kd4
{[%clk 0:00:06.7]} 69... Ke8 {[%clk 0:00:08.7]} 70. Kc5 {[%clk 0:00:06.4]} 70...
Kf7 {[%clk 0:00:09.1]} 71. Kb5 {[%clk 0:00:06.7]} 71... Kxf6 {[%clk 0:00:10]}
72. Kxa5 {[%clk 0:00:07.1]} 72... e5 {[%clk 0:00:10.9]} 73. fxe5+ {[%clk
0:00:07.5]} 73... Kxe5 {[%clk 0:00:11.8]} 74. Kxb4 {[%clk 0:00:08.1]} 74... f4
{[%clk 0:00:12.7]} 75. Kc3 {[%clk 0:00:08.9]} 75... Ke4 {[%clk 0:00:12.2]} 76.
Kd2 {[%clk 0:00:09.8]} 76... Kf3 {[%clk 0:00:12.4]} 77. Ke1 {[%clk 0:00:10.7]}
77... Kg2 {[%clk 0:00:12.5]} 78. a5 {[%clk 0:00:08.9]} 78... f3 {[%clk
0:00:13.4]} 79. a6 {[%clk 0:00:09.3]} 79... f2+ {[%clk 0:00:13.7]} 80. Kd2
{[%clk 0:00:09.7]} 80... f1=Q {[%clk 0:00:14.6]} 0-1

[Event "*** Titled Tuesday Blitz"]
[Site "Chess.com"]
[Date "2020.04.14"]
[Round "8"]
[White "ambaixador"]
[Black "Biranidun"]
[Result "1-0"]
[WhiteElo "2397"]
[BlackElo "2635"]
[TimeControl "180+1"]
[EndTime "11:31:19 PDT"]
[Termination "ambaixador won on time"]

1. Nf3 {[%clk 0:02:15.6]} 1... Nf6 {[%clk 0:02:59.5]} 2. c4 {[%clk 0:02:15.6]}
2... g6 {[%clk 0:02:56.9]} 3. g3 {[%clk 0:02:16]} 3... Bg7 {[%clk 0:02:56.7]} 4.
Bg2 {[%clk 0:02:16.9]} 4... O-O {[%clk 0:02:56.6]} 5. O-O {[%clk 0:02:17.8]}
5... d6 {[%clk 0:02:56.5]} 6. d4 {[%clk 0:02:18.2]} 6... Nbd7 {[%clk 0:02:53.6]}
7. Nc3 {[%clk 0:02:17.3]} 7... e5 {[%clk 0:02:52.4]} 8. e4 {[%clk 0:02:15.4]}
8... c6 {[%clk 0:02:50.9]} 9. h3 {[%clk 0:02:15.2]} 9... Qb6 {[%clk 0:02:49.8]}
10. Re1 {[%clk 0:02:12]} 10... exd4 {[%clk 0:02:48.9]} 11. Nxd4 {[%clk
0:02:12.9]} 11... Re8 {[%clk 0:02:48.5]} 12. Nc2 {[%clk 0:02:10.6]} 12... a5
{[%clk 0:02:47]} 13. Rb1 {[%clk 0:02:07.6]} 13... a4 {[%clk 0:02:24.4]} 14. Qxd6
{[%clk 0:02:01.7]} 14... Ne5 {[%clk 0:02:23]} 15. Be3 {[%clk 0:01:55.1]} 15...
Qa5 {[%clk 0:02:07.5]} 16. c5 {[%clk 0:01:36.5]} 16... Bf8 {[%clk 0:01:38.6]}
17. Qxf6 {[%clk 0:01:35.2]} 17... Bg7 {[%clk 0:01:25]} 18. Qd6 {[%clk
0:01:31.8]} 18... Rd8 {[%clk 0:01:23.2]} 19. Qe7 {[%clk 0:01:19.2]} 19... Be6
{[%clk 0:01:14]} 20. Rbd1 {[%clk 0:01:14.7]} 20... Nd3 {[%clk 0:01:12.3]} 21.
Rf1 {[%clk 0:01:00.9]} 21... Rd7 {[%clk 0:00:59.2]} 22. Qh4 {[%clk 0:00:58.8]}
22... Rad8 {[%clk 0:00:53.2]} 23. Bh6 {[%clk 0:00:56.1]} 23... Bh8 {[%clk
0:00:51.4]} 24. Bg5 {[%clk 0:00:55]} 24... Re8 {[%clk 0:00:50.6]} 25. Ne3 {[%clk
0:00:52.1]} 25... Nxb2 {[%clk 0:00:45.8]} 26. Rxd7 {[%clk 0:00:53]} 26... Bxd7
{[%clk 0:00:46.4]} 27. Ne2 {[%clk 0:00:52.4]} 27... Qxc5 {[%clk 0:00:37.6]} 28.
Bf6 {[%clk 0:00:47.5]} 28... Bxf6 {[%clk 0:00:36.1]} 29. Qxf6 {[%clk 0:00:48.4]}
29... Nd3 {[%clk 0:00:30]} 30. Nf4 {[%clk 0:00:44.5]} 30... Nxf4 {[%clk
0:00:28.7]} 31. gxf4 {[%clk 0:00:45.1]} 31... Be6 {[%clk 0:00:28.9]} 32. f5
{[%clk 0:00:43.2]} 32... Bxa2 {[%clk 0:00:28.6]} 33. Ng4 {[%clk 0:00:42.8]}
33... Qf8 {[%clk 0:00:28.3]} 34. e5 {[%clk 0:00:37.4]} 34... Ra8 {[%clk
0:00:18.9]} 35. Qg5 {[%clk 0:00:32.3]} 35... a3 {[%clk 0:00:14.8]} 36. Nf6+
{[%clk 0:00:30.1]} 36... Kh8 {[%clk 0:00:13.7]} 37. Qh4 {[%clk 0:00:29.7]} 37...
Qg7 {[%clk 0:00:14]} 38. Ra1 {[%clk 0:00:29.2]} 38... Bb3 {[%clk 0:00:12.5]} 39.
Qb4 {[%clk 0:00:28.4]} 39... Bc2 {[%clk 0:00:11.4]} 40. fxg6 {[%clk 0:00:25.2]}
40... a2 {[%clk 0:00:08.1]} 41. Qxb7 {[%clk 0:00:24.1]} 41... Rd8 {[%clk
0:00:03.6]} 42. Qxc6 {[%clk 0:00:23.3]} 42... Qxg6 {[%clk 0:00:03.3]} 43. Kh2
{[%clk 0:00:22.1]} 43... Bb1 {[%clk 0:00:02.7]} 44. Qc7 {[%clk 0:00:21.2]} 44...
Rf8 {[%clk 0:00:02.4]} 45. Qe7 {[%clk 0:00:20.7]} 45... Rb8 {[%clk 0:00:02.6]}
46. Ng4 {[%clk 0:00:18.8]} 46... h5 {[%clk 0:00:02.5]} 47. Qf6+ {[%clk
0:00:18.6]} 47... Kh7 {[%clk 0:00:02.9]} 48. Qxg6+ {[%clk 0:00:18.1]} 48... Kxg6
{[%clk 0:00:03.8]} 49. Ne3 {[%clk 0:00:18]} 49... Rb5 {[%clk 0:00:03]} 50. f4
{[%clk 0:00:17.7]} 50... h4 {[%clk 0:00:02.6]} 51. f5+ {[%clk 0:00:17.6]} 51...
Kg5 {[%clk 0:00:02.7]} 52. e6 {[%clk 0:00:17.2]} 52... fxe6 {[%clk 0:00:03.1]}
53. fxe6 {[%clk 0:00:18.1]} 53... Re5 {[%clk 0:00:02.9]} 54. Nc4 {[%clk
0:00:14.5]} 54... Rxe6 {[%clk 0:00:03]} 55. Nd2 {[%clk 0:00:14.5]} 55... Re1
{[%clk 0:00:03.1]} 56. Nf3+ {[%clk 0:00:14.7]} 56... Kf4 {[%clk 0:00:01]} 57.
Nxe1 {[%clk 0:00:15.6]} 57... Ke3 {[%clk 0:00:01.9]} 58. Bf1 {[%clk 0:00:15.2]}
58... Kd2 {[%clk 0:00:02.2]} 59. Nf3+ {[%clk 0:00:13.9]} 59... Kc3 {[%clk
0:00:02.2]} 60. Nxh4 {[%clk 0:00:10]} 60... Kb2 {[%clk 0:00:02.6]} 61. Rxa2+
{[%clk 0:00:10.2]} 61... Kxa2 {[%clk 0:00:03.5]} 62. Kg3 {[%clk 0:00:10.5]}
62... Kb2 {[%clk 0:00:04]} 63. Kf4 {[%clk 0:00:10.6]} 63... Kc3 {[%clk
0:00:04.9]} 64. Nf5 {[%clk 0:00:10.8]} 1-0

[Event "*** Titled Tuesday Blitz"]
[Site "Chess.com"]
[Date "2020.04.14"]
[Round "8"]
[White "Alkhoori90"]
[Black "JLRHei"]
[Result "1-0"]
[WhiteElo "2095"]
[BlackElo "2360"]
[TimeControl "180+1"]
[EndTime "11:31:19 PDT"]
[Termination "Alkhoori90 won on time"]

1. e4 {[%clk 0:03:00]} 1... g6 {[%clk 0:02:58.4]} 2. Nc3 {[%clk 0:02:58.8]} 2...
Bg7 {[%clk 0:02:59.3]} 3. Bc4 {[%clk 0:02:59.1]} 3... d6 {[%clk 0:02:57.8]} 4.
d3 {[%clk 0:02:59.3]} 4... a6 {[%clk 0:02:57.6]} 5. Bb3 {[%clk 0:02:58.9]} 5...
e6 {[%clk 0:02:57.1]} 6. f4 {[%clk 0:02:59]} 6... Ne7 {[%clk 0:02:57.2]} 7. Nf3
{[%clk 0:02:59.5]} 7... c5 {[%clk 0:02:57.6]} 8. O-O {[%clk 0:02:59.7]} 8...
Nbc6 {[%clk 0:02:58.1]} 9. Kh1 {[%clk 0:02:58.5]} 9... O-O {[%clk 0:02:44.6]}
10. Qe1 {[%clk 0:02:58.2]} 10... Nd4 {[%clk 0:02:41.7]} 11. Qh4 {[%clk
0:02:55.8]} 11... Nec6 {[%clk 0:02:32.4]} 12. Qg3 {[%clk 0:02:49.4]} 12... Nxf3
{[%clk 0:02:21.6]} 13. Rxf3 {[%clk 0:02:50.3]} 13... Nd4 {[%clk 0:02:21.3]} 14.
Rf1 {[%clk 0:02:45.7]} 14... b5 {[%clk 0:02:21.3]} 15. f5 {[%clk 0:02:36.6]}
15... exf5 {[%clk 0:02:16.5]} 16. Bg5 {[%clk 0:02:34.4]} 16... Qd7 {[%clk
0:01:45.1]} 17. Nd5 {[%clk 0:02:32.3]} 17... Nxb3 {[%clk 0:01:15.2]} 18. axb3
{[%clk 0:02:33.2]} 18... Qe6 {[%clk 0:01:14.9]} 19. Nc7 {[%clk 0:02:30.3]} 19...
Qd7 {[%clk 0:01:11.7]} 20. Nxa8 {[%clk 0:02:30.5]} 20... Qb7 {[%clk 0:01:11.7]}
21. Qxd6 {[%clk 0:02:26.4]} 21... Qxa8 {[%clk 0:01:06.8]} 22. e5 {[%clk
0:02:23]} 22... Bb7 {[%clk 0:01:03.1]} 23. Rf2 {[%clk 0:02:21.1]} 23... Re8
{[%clk 0:00:53.6]} 24. Bf6 {[%clk 0:02:14]} 24... Bf8 {[%clk 0:00:52.8]} 25. Qb6
{[%clk 0:01:56.2]} 25... Qc8 {[%clk 0:00:49]} 26. b4 {[%clk 0:01:43.4]} 26...
cxb4 {[%clk 0:00:44.2]} 27. Qe3 {[%clk 0:01:42.9]} 27... Qc6 {[%clk 0:00:37.1]}
28. Qf4 {[%clk 0:01:37.2]} 28... Rc8 {[%clk 0:00:30]} 29. Re1 {[%clk 0:01:32.2]}
29... Qe6 {[%clk 0:00:29.8]} 30. d4 {[%clk 0:01:29]} 30... Bd5 {[%clk
0:00:29.6]} 31. Re3 {[%clk 0:01:26.6]} 31... Re8 {[%clk 0:00:26.4]} 32. Rh3
{[%clk 0:01:26.6]} 32... b3 {[%clk 0:00:18.7]} 33. c3 {[%clk 0:01:20.1]} 33...
a5 {[%clk 0:00:18.3]} 34. Qh4 {[%clk 0:01:19.8]} 34... h5 {[%clk 0:00:17.8]} 35.
Qg5 {[%clk 0:01:17.2]} 35... Bh6 {[%clk 0:00:16.2]} 36. Qxh6 {[%clk 0:01:16.3]}
36... Qxf6 {[%clk 0:00:16.5]} 37. Rxh5 {[%clk 0:01:00.1]} 37... Qg7 {[%clk
0:00:16.5]} 38. Qxg7+ {[%clk 0:00:46.1]} 38... Kxg7 {[%clk 0:00:17.4]} 39. Rh3
{[%clk 0:00:39.8]} 39... a4 {[%clk 0:00:16]} 40. Re3 {[%clk 0:00:34.4]} 40... b4
{[%clk 0:00:16.1]} 41. cxb4 {[%clk 0:00:32.6]} 41... Rb8 {[%clk 0:00:16.5]} 42.
Rd2 {[%clk 0:00:29.7]} 42... Rxb4 {[%clk 0:00:16.4]} 43. h3 {[%clk 0:00:29.1]}
43... Rc4 {[%clk 0:00:16]} 44. Re1 {[%clk 0:00:25.6]} 44... Rc2 {[%clk
0:00:15.4]} 45. Rxc2 {[%clk 0:00:21.8]} 45... bxc2 {[%clk 0:00:16.3]} 46. Kg1
{[%clk 0:00:21.7]} 46... Kh6 {[%clk 0:00:14.7]} 47. Kf2 {[%clk 0:00:21.7]} 47...
Kg5 {[%clk 0:00:15.3]} 48. g3 {[%clk 0:00:22.2]} 48... Bb3 {[%clk 0:00:13.5]}
49. Ke3 {[%clk 0:00:19.6]} 49... Kh6 {[%clk 0:00:12.4]} 50. Kd2 {[%clk
0:00:18.2]} 50... g5 {[%clk 0:00:12.8]} 51. Kc3 {[%clk 0:00:18.2]} 51... f4
{[%clk 0:00:12.9]} 52. gxf4 {[%clk 0:00:17.9]} 52... gxf4 {[%clk 0:00:13.1]} 53.
Kb4 {[%clk 0:00:16.3]} 53... f3 {[%clk 0:00:13.2]} 54. Kc5 {[%clk 0:00:16.3]}
54... f2 {[%clk 0:00:13.1]} 55. Rf1 {[%clk 0:00:15.3]} 55... Kg6 {[%clk
0:00:12.5]} 56. d5 {[%clk 0:00:15.4]} 56... Kf5 {[%clk 0:00:09.4]} 57. Kd4
{[%clk 0:00:12.7]} 57... Kg6 {[%clk 0:00:08.5]} 58. d6 {[%clk 0:00:13.1]} 58...
Be6 {[%clk 0:00:05.4]} 59. Ke3 {[%clk 0:00:12]} 59... Kf5 {[%clk 0:00:04.7]} 60.
Rxf2+ {[%clk 0:00:11.9]} 60... Kxe5 {[%clk 0:00:05.1]} 61. Rxc2 {[%clk
0:00:11.9]} 61... Kxd6 {[%clk 0:00:05.6]} 62. Kd4 {[%clk 0:00:11.1]} 62... Bxh3
{[%clk 0:00:05.4]} 63. Rc4 {[%clk 0:00:11.5]} 63... Bd7 {[%clk 0:00:04.9]} 64.
Rb4 {[%clk 0:00:12]} 64... f6 {[%clk 0:00:03.5]} 65. Rb6+ {[%clk 0:00:12.2]}
65... Ke7 {[%clk 0:00:03.3]} 66. Ra6 {[%clk 0:00:11.9]} 66... f5 {[%clk
0:00:03.3]} 67. Ke5 {[%clk 0:00:12.2]} 1-0